[Event "IIFL Wealth  4th Mumbai Junior U-13"]
[Site "Mumbai"]
[Date "2019.01.03"]
[Round "5"]
[White "Srihari L R"]
[Black "Ayush Sharma"]
[Result "1-0"]
[ECO "E15"]
[WhiteElo "2316"]
[BlackElo "1778"]
[Annotator "ChessBase"]
[PlyCount "97"]
[EventDate "2018.12.30"]
[EventType "swiss"]
[EventCountry "IND"]
[SourceTitle "playchess.com"]
[Source "ChessBase"]
[SourceQuality "1"]
[TimeControl "40/5400+30:1800+30"]

1. d4 {[%emt 0:00:00]} Nf6 {[%emt 0:00:00]} 2. c4 {[%emt 0:03:25]} e6 {[%emt 0:01:00]} 3. Nf3 {[%emt 0:00:32]} b6 {[%emt 0:00:31]} 4. g3 {[%emt 0:00:13]} Bb7 {[%emt 0:00:06]} 5. Bg2 {[%emt 0:00:11]} c5 {[%emt 0:00:17]} 6. d5 {[%emt 0:03:49]} exd5 {[%emt 0:00:11]} 7. Nh4 {[%emt 0:00:06]} g6 {[%emt 0:01:23]} 8. Nc3 {[%emt 0:01:31]} Bg7 {[%emt 0:00:05]} 9. O-O {[%emt 0:00:44]} O-O {[%emt 0:00:06]} 10. cxd5 {[%emt 0:00:11]} d6 {[%emt 0:00:48]} 11. Rb1 {[%emt 0:10:33]} Na6 {[%emt 0:05:05]} 12. a3 {[%emt 0:05:34]} c4 {[%emt 0:09:43]} 13. Nf3 {[%emt 0:04:18]} Qd7 {[%emt 0:11:14]} 14. Nd4 {[%emt 0:02:41]} Rac8 {[%emt 0:02:21]} 15. Bf4 {[%emt 0:02:29]} Rc5 {[%emt 0:06:23]} 16. e4 {[%emt 0:04:12]} b5 {[%emt 0:04:38]} 17. Nc6 {[%emt 0:04:14]} Nh5 {[%emt 0:06:44]} 18. Be3 {[%emt 0:01:10]} Rxc6 {[%emt 0:02:20]} 19. dxc6 {[%emt 0:00:17]} Bxc6 {[%emt 0:00:04]} 20. Qd2 {[%emt 0:01:27]} Rd8 {[%emt 0:03:44]} 21. Rfd1 {[%emt 0:00:41]} Nf6 {[%emt 0:00:06]} 22. b3 {[%emt 0:24:17]} Ng4 {[%emt 0:10:03]} 23. bxc4 {[%emt 0:02:34]} bxc4 {[%emt 0:00:38]} 24. Bd4 {[%emt 0:01:07]} Ne5 {[%emt 0:04:25]} 25. Nd5 {[%emt 0:01:43]} Nc7 {[%emt 0:11:36]} 26. f4 {[%emt 0:05:04]} c3 {[%emt 0:01:54]} 27. Qxc3 {[%emt 0:01:28]} Bxd5 {[%emt 0:00:08]} 28. exd5 {[%emt 0:00:28]} Nb5 {[%emt 0:00:03]} 29. Rxb5 {[%emt 0:00:19]} Qxb5 {[%emt 0:00:32]} 30. fxe5 {[%emt 0:00:20]} dxe5 {[%emt 0:00:04]} 31. Bxe5 {[%emt 0:00:47]} Qe2 {[%emt 0:00:23]} 32. Re1 {[%emt 0:00:06]} Bxe5 {[%emt 0:00:05]} 33. Qxe5 {[%emt 0:00:08]} Qxe5 {[%emt 0:00:02]} 34. Rxe5 {[%emt 0:00:12]} Kf8 {[%emt 0:00:02]} 35. Re3 {[%emt 0:00:09]} Rd6 {[%emt 0:00:22]} 36. Kf2 {[%emt 0:00:21]} Rb6 {[%emt 0:00:03]} 37. Kf3 {[%emt 0:00:32]} Rf6+ {[%emt 0:00:05]} 38. Kg4 {[%emt 0:01:00]} Rf2 {[%emt 0:00:09]} 39. Kh3 {[%emt 0:00:07]} h5 {[%emt 0:00:23]} 40. Rd3 {[%emt 0:00:00]} g5 {[%emt 0:00:00]} 41. g4 {[%emt 0:01:28]} hxg4+ {[%emt 0:01:04]} 42. Kg3 {[%emt 0:00:01]} Rc2 {[%emt 0:00:11]} 43. d6 {[%emt 0:00:22]} Ke8 {[%emt 0:00:25]} 44. Be4 {[%emt 0:00:31]} Re2 {[%emt 0:00:06]} 45. Bf5 {[%emt 0:00:20]} Re5 {[%emt 0:00:05]} 46. Kxg4 {[%emt 0:00:09]} Re2 {[%emt 0:00:03]} 47. d7+ {[%emt 0:00:14]} Kd8 {[%emt 0:00:03]} 48. Rc3 {[%emt 0:00:10]} Rg2+ {[%emt 0:00:03]} 49. Kh3 {[%emt 0:00:07]} 1-0

[Event "IIFL Wealth  4th Mumbai Junior U-13"]
[Site "Mumbai"]
[Date "2019.01.03"]
[Round "5"]
[White "Nikhil Magizhnan"]
[Black "Vivaan Vijay Saraogi"]
[Result "1-0"]
[ECO "C44"]
[WhiteElo "2148"]
[BlackElo "1290"]
[Annotator "ChessBase"]
[PlyCount "223"]
[EventDate "2018.12.30"]
[EventType "swiss"]
[EventCountry "IND"]
[SourceTitle "playchess.com"]
[Source "ChessBase"]
[SourceQuality "1"]
[TimeControl "40/5400+30:1800+30"]

1. e4 {[%emt 0:00:00]} e5 {[%emt 0:00:00]} 2. Nf3 {[%emt 0:00:00]} Nc6 {[%emt 0:00:00]} 3. d4 {[%emt 0:00:33]} exd4 {[%emt 0:00:05]} 4. Bc4 {[%emt 0:00:08]} Bc5 {[%emt 0:00:34]} 5. Ng5 {[%emt 0:02:53]} Nh6 {[%emt 0:00:13]} 6. Nxf7 {[%emt 0:04:32]} Nxf7 {[%emt 0:00:02]} 7. Bxf7+ {[%emt 0:00:12]} Kxf7 {[%emt 0:00:12]} 8. Qh5+ {[%emt 0:00:03]} g6 {[%emt 0:00:21]} 9. Qxc5 {[%emt 0:02:40]} Kg7 {[%emt 0:01:05]} 10. O-O {[%emt 0:06:01]} d6 {[%emt 0:00:19]} 11. Qg5 {[%emt 0:01:05]} Qxg5 {[%emt 0:00:45]} 12. Bxg5 {[%emt 0:00:10]} Re8 {[%emt 0:00:37]} 13. f3 {[%emt 0:00:19]} Nb4 {[%emt 0:01:49]} 14. Na3 {[%emt 0:00:58]} Na6 {[%emt 0:05:02]} 15. Nb5 {[%emt 0:01:50]} Re5 {[%emt 0:00:08]} 16. Nxc7 {[%emt 0:02:42]} Nxc7 {[%emt 0:00:42]} 17. Bf4 {[%emt 0:00:34]} Re6 {[%emt 0:00:30]} 18. Rad1 {[%emt 0:00:29]} b6 {[%emt 0:29:12]} 19. Rxd4 {[%emt 0:01:46]} Ba6 {[%emt 0:05:02]} 20. Rfd1 {[%emt 0:00:54]} Nb5 {[%emt 0:00:50]} 21. Ra4 {[%emt 0:05:33]} Bb7 {[%emt 0:00:48]} 22. Rb4 {[%emt 0:00:44]} Nc7 {[%emt 0:00:58]} 23. Rxd6 {[%emt 0:09:39]} Rxd6 {[%emt 0:00:17]} 24. Bxd6 {[%emt 0:00:10]} Ne8 {[%emt 0:00:11]} 25. Bf4 {[%emt 0:01:36]} Rd8 {[%emt 0:00:37]} 26. Be3 {[%emt 0:00:54]} Nf6 {[%emt 0:07:48]} 27. Ra4 {[%emt 0:03:10]} a6 {[%emt 0:00:15]} 28. Bxb6 {[%emt 0:05:41]} Rd1+ {[%emt 0:00:07]} 29. Kf2 {[%emt 0:00:06]} Rd2+ {[%emt 0:00:06]} 30. Ke3 {[%emt 0:00:50]} Rxc2 {[%emt 0:00:11]} 31. Bd4 {[%emt 0:01:16]} Kf7 {[%emt 0:02:46]} 32. Rb4 {[%emt 0:09:33]} Bc8 {[%emt 0:00:36]} 33. Rb6 {[%emt 0:03:25]} Nd7 {[%emt 0:11:51]} 34. Rb3 {[%emt 0:01:07]} Ke7 {[%emt 0:00:10]} 35. Rc3 {[%emt 0:02:50]} Rxc3+ {[%emt 0:00:55]} 36. Bxc3 {[%emt 0:00:29]} Ke6 {[%emt 0:01:13]} 37. Bd4 {[%emt 0:00:22]} Nb8 {[%emt 0:01:45]} 38. Kf4 {[%emt 0:04:22]} h6 {[%emt 0:02:22]} 39. h4 {[%emt 0:00:31]} Nc6 {[%emt 0:02:01]} 40. Bg7 {[%emt 0:00:00]} h5 {[%emt 0:00:00]} 41. Bc3 {[%emt 0:00:44]} Nd8 {[%emt 0:01:36]} 42. Ke3 {[%emt 0:00:55]} Nb7 {[%emt 0:01:22]} 43. Kf4 {[%emt 0:03:10]} Nc5 {[%emt 0:01:08]} 44. Bd4 {[%emt 0:00:38]} Nd3+ {[%emt 0:00:28]} 45. Ke3 {[%emt 0:02:41]} Nb4 {[%emt 0:00:07]} 46. Bc3 Nc6 {[%emt 0:00:48]} 47. Kd3 {[%emt 0:01:00]} Nd8 {[%emt 0:00:37]} 48. Bd2 {[%emt 0:02:08]} Nb7 {[%emt 0:00:15]} 49. Ke3 {[%emt 0:00:49]} Bd7 {[%emt 0:00:53]} 50. b3 {[%emt 0:02:03]} Bb5 {[%emt 0:02:27]} 51. Bb4 {[%emt 0:03:47]} Bd7 {[%emt 0:02:47]} 52. Kf4 {[%emt 0:01:02]} Bb5 {[%emt 0:00:32]} 53. Ke3 {[%emt 0:01:14]} Bd7 {[%emt 0:00:07]} 54. Kd4 {[%emt 0:00:15]} Bb5 {[%emt 0:00:14]} 55. g3 {[%emt 0:00:47]} Bd7 {[%emt 0:00:17]} 56. Ke3 {[%emt 0:01:39]} Nd8 {[%emt 0:01:11]} 57. Bc3 {[%emt 0:00:24]} Bb5 {[%emt 0:00:47]} 58. Bd4 {[%emt 0:00:45]} Nf7 {[%emt 0:01:31]} 59. Bc3 {[%emt 0:00:48]} Nd8 {[%emt 0:00:16]} 60. Bd4 {[%emt 0:00:49]} Nf7 {[%emt 0:00:22]} 61. Bb6 {[%emt 0:00:45]} Nd6 {[%emt 0:00:33]} 62. Kd4 {[%emt 0:00:29]} Nb7 {[%emt 0:00:20]} 63. Bc7 {[%emt 0:00:44]} Kd7 {[%emt 0:00:18]} 64. Bb8 {[%emt 0:01:09]} Ke6 {[%emt 0:12:59]} 65. Ba7 {[%emt 0:01:28]} Be8 {[%emt 0:00:43]} 66. Bb6 {[%emt 0:01:32]} Bc6 {[%emt 0:06:33]} 67. Ke3 {[%emt 0:01:10]} Nd6 {[%emt 0:00:12]} 68. Bc5 {[%emt 0:00:17]} Nb7 {[%emt 0:01:51]} 69. Bb4 {[%emt 0:00:01]} Nd8 {[%emt 0:00:17]} 70. Kf4 {[%emt 0:00:17]} Nf7 {[%emt 0:00:12]} 71. Bc3 {[%emt 0:00:24]} Bb5 {[%emt 0:00:30]} 72. Bd4 {[%emt 0:00:42]} Bd7 {[%emt 0:00:14]} 73. Bb6 {[%emt 0:01:06]} Bc6 {[%emt 0:00:20]} 74. Ke3 {[%emt 0:01:24]} Nd6 {[%emt 0:00:14]} 75. Bc5 {[%emt 0:00:10]} Nb7 {[%emt 0:00:34]} 76. Bb4 {[%emt 0:00:14]} Nd8 {[%emt 0:00:08]} 77. Ba5 {[%emt 0:00:09]} Nb7 {[%emt 0:01:11]} 78. Bc7 {[%emt 0:00:13]} Kd7 {[%emt 0:00:05]} 79. Bb6 {[%emt 0:00:23]} Nd6 {[%emt 0:00:57]} 80. Kd4 {[%emt 0:00:15]} Ke6 {[%emt 0:04:47]} 81. Kc5 {[%emt 0:01:01]} Bb5 {[%emt 0:00:05]} 82. Bc7 {[%emt 0:00:26]} Ne8 {[%emt 0:01:07]} 83. Bf4 {[%emt 0:01:22]} Be2 {[%emt 0:00:23]} 84. Kb6 {[%emt 0:00:15]} Nf6 {[%emt 0:01:08]} 85. b4 {[%emt 0:01:25]} Bxf3 {[%emt 0:00:30]} 86. Kxa6 {[%emt 0:00:13]} Bxe4 {[%emt 0:00:10]} 87. b5 {[%emt 0:01:20]} Bd3 {[%emt 0:00:16]} 88. a4 {[%emt 0:00:12]} Nd5 {[%emt 0:00:10]} 89. Bd2 {[%emt 0:00:30]} Kd7 {[%emt 0:00:12]} 90. Ka7 {[%emt 0:00:17]} Nf6 {[%emt 0:01:12]} 91. b6 {[%emt 0:00:22]} Be4 {[%emt 0:00:05]} 92. b7 {[%emt 0:00:49]} Bxb7 {[%emt 0:00:14]} 93. Kxb7 {[%emt 0:00:02]} Ne4 {[%emt 0:00:31]} 94. Bb4 {[%emt 0:00:22]} Nxg3 {[%emt 0:00:12]} 95. a5 {[%emt 0:00:35]} Nf5 {[%emt 0:00:18]} 96. a6 {[%emt 0:00:31]} Nxh4 {[%emt 0:00:04]} 97. a7 {[%emt 0:00:04]} g5 {[%emt 0:00:07]} 98. a8=Q {[%emt 0:00:04]} Ke6 {[%emt 0:00:05]} 99. Qe8+ {[%emt 0:00:19]} Kf5 {[%emt 0:00:06]} 100. Qxh5 {[%emt 0:00:20]} Ng2 {[%emt 0:00:19]} 101. Qh3+ {[%emt 0:00:07]} g4 {[%emt 0:00:04]} 102. Qxg2 {[%emt 0:00:09]} Kf4 {[%emt 0:00:19]} 103. Kc6 {[%emt 0:00:04]} g3 {[%emt 0:00:07]} 104. Bd6+ {[%emt 0:00:08]} Ke3 {[%emt 0:00:09]} 105. Qxg3+ {[%emt 0:00:02]} Ke4 {[%emt 0:00:16]} 106. Qf4+ {[%emt 0:00:02]} Kd3 {[%emt 0:00:09]} 107. Kd5 {[%emt 0:00:03]} Kc3 {[%emt 0:00:11]} 108. Qe3+ {[%emt 0:00:02]} Kc2 {[%emt 0:00:15]} 109. Kc4 {[%emt 0:00:05]} Kb2 {[%emt 0:00:07]} 110. Qf2+ {[%emt 0:00:10]} Ka1 {[%emt 0:00:09]} 111. Be5+ {[%emt 0:00:06]} Kb1 {[%emt 0:00:01]} 112. Qb2# {[%emt 0:00:03]} 1-0

[Event "IIFL Wealth  4th Mumbai Junior U-13"]
[Site "Mumbai"]
[Date "2019.01.03"]
[Round "5"]
[White "Manish Anto Cristiano F"]
[Black "Pingale Shivraj"]
[Result "1-0"]
[ECO "D45"]
[WhiteElo "2065"]
[BlackElo "1580"]
[Annotator "NA RC"]
[PlyCount "93"]
[EventDate "2018.12.30"]
[EventType "swiss"]
[EventCountry "IND"]
[SourceTitle "playchess.com"]
[Source "ChessBase"]
[SourceQuality "1"]
[TimeControl "40/5400+30:1800+30"]

1. d4 {[%emt 0:00:00]} d5 {[%emt 0:00:00]} 2. c4 {[%emt 0:00:04]} c6 {[%emt 0:00:00]} 3. Nc3 {[%emt 0:00:29]} Nf6 {[%emt 0:00:43]} 4. e3 {[%emt 0:00:32]} e6 {[%emt 0:00:07]} 5. Nf3 {[%emt 0:00:30]} Bd6 {[%emt 0:00:18]} 6. Qc2 {[%emt 0:02:55]} Nbd7 {[%emt 0:01:00]} 7. Bd3 {[%emt 0:00:19]} O-O {[%emt 0:00:12]} 8. O-O {[%emt 0:01:27]} dxc4 {[%emt 0:02:57]} 9. Bxc4 {[%emt 0:01:25]} b5 {[%emt 0:00:53]} 10. Be2 {[%emt 0:03:36]} Bb7 {[%emt 0:03:13]} 11. e4 {[%emt 0:03:34]} e5 {[%emt 0:02:15]} 12. Rd1 {[%emt 0:05:35] D46: Semi-Slav: 5 e3 Nbd7 6 Bd3, Black avoids the Meran} (12. dxe5 Nxe5 13. Nh4 Bc8 14. h3 Ng6 15. Nf5 Bxf5 16. exf5 Nf4 17. Bf3 Rc8 18. Rd1 Qe7 19. Be3 Rfd8 {1-0 (56) Aronian,L (2793)-Giri,A (2771) Leuven 2017}) 12... Qe7 {[%emt 0:08:00]} 13. dxe5 {[%emt 0:03:29] LiveBook: 26 Games} Bxe5 {[%emt 0:01:30]} 14. Nxe5 {[%emt 0:04:36]} Nxe5 {[%emt 0:02:39]} 15. h3 {[%emt 0:03:01]} Ned7 $146 {[%emt 0:04:05]} ({Predecessor:} 15... Rfd8 16. Be3 a6 17. f4 Ng6 18. e5 Nd5 19. Nxd5 Rxd5 {1-0 (31) Cheremnova,T (2245)-Zaichenko,D (2145) Irkutsk 2010}) 16. a3 {[%emt 0:05:14]} a5 {[%emt 0:06:25]} 17. Be3 {[%emt 0:02:55]} Rfc8 {[%emt 0:11:49]} 18. f3 {[%emt 0:04:22]} b4 {[%emt 0:02:17]} 19. axb4 {[%emt 0:02:54]} axb4 {[%emt 0:00:27]} 20. Rxa8 {[%emt 0:01:03]} Bxa8 {[%emt 0:02:52]} 21. Na4 {[%emt 0:00:37]} c5 {[%emt 0:00:35]} 22. Ba6 {[%emt 0:03:40]} Rc6 {[%emt 0:08:23]} 23. Bb5 {[%emt 0:04:49]} Rc8 {[%emt 0:00:20]} 24. b3 {[%emt 0:10:39]} Bb7 {[%emt 0:07:19]} 25. Rc1 {[%emt 0:03:00]} Qd8 {[%emt 0:05:00]} 26. Qd2 {[%emt 0:02:23]} Qe7 {[%emt 0:02:28]} 27. Qf2 {[%emt 0:01:57]} Qd8 {[%emt 0:06:52]} 28. Nxc5 {[%emt 0:02:39]} Nxc5 {[%emt 0:00:54]} 29. Rxc5 {[%emt 0:00:39]} Rxc5 {[%emt 0:00:32]} 30. Bxc5 {[%emt 0:00:13]} Qd1+ {[%emt 0:00:14]} 31. Kh2 {[%emt 0:01:02]} Qxb3 {[%emt 0:01:32]} 32. Qd4 {[%emt 0:02:10]} h6 {[%emt 0:01:06]} 33. e5 {[%emt 0:03:33]} Nd5 {[%emt 0:02:21]} 34. Bc4 {[%emt 0:01:12]} Qc3 {[%emt 0:00:33]} 35. Qe4 {[%emt 0:01:03]} b3 {[%emt 0:01:09] [#]} 36. e6 $16 {[%emt 0:02:36]} fxe6 {[%emt 0:01:46]} 37. Qxe6+ {[%emt 0:00:04]} Kh8 {[%emt 0:01:39]} 38. Qe8+ {[%emt 0:01:53]} Kh7 {[%emt 0:00:19]} 39. Qe4+ {[%emt 0:00:08]} Kh8 {[%emt 0:00:21]} 40. Bd4 {[%emt 0:00:00]} Qxc4 {[%emt 0:00:00]} 41. Bxg7+ {[%emt 0:00:51]} Kxg7 {[%emt 0:05:46]} 42. Qxc4 {[%emt 0:00:08]} b2 {[%emt 0:00:30]} 43. Qd4+ {[%emt 0:00:08]} Kg6 {[%emt 0:00:13]} 44. Qxb2 {[%emt 0:00:08]} Bc8 {[%emt 0:01:06]} 45. g4 {[%emt 0:00:40]} Be6 {[%emt 0:00:19]} 46. Qe5 {[%emt 0:00:10]} Kf7 {[%emt 0:00:50]} 47. f4 1-0

[Event "IIFL Wealth  4th Mumbai Junior U-13"]
[Site "Mumbai"]
[Date "2019.01.03"]
[Round "5"]
[White "Shah Jeet"]
[Black "Balkawade Sai"]
[Result "1-0"]
[ECO "C18"]
[WhiteElo "1904"]
[BlackElo "1482"]
[Annotator "NA RC"]
[PlyCount "34"]
[EventDate "2018.12.30"]
[EventType "swiss"]
[EventCountry "IND"]
[SourceTitle "playchess.com"]
[Source "ChessBase"]
[SourceQuality "1"]
[TimeControl "40/5400+30:1800+30"]

1. e4 {[%emt 0:00:00]} e6 {[%emt 0:00:00]} 2. d4 {[%emt 0:00:00]} d5 {[%emt 0:00:00]} 3. Nc3 {[%emt 0:00:07]} Bb4 {[%emt 0:00:14]} 4. e5 {[%emt 0:00:46]} c5 {[%emt 0:00:17]} 5. a3 {[%emt 0:00:27]} Bxc3+ {[%emt 0:00:19]} 6. bxc3 {[%emt 0:00:02]} Ne7 {[%emt 0:00:19]} 7. Qg4 {[%emt 0:02:07]} Qc7 {[%emt 0:02:23]} 8. Qxg7 {[%emt 0:00:55]} Rg8 {[%emt 0:00:23]} 9. Qxh7 {[%emt 0:00:07]} cxd4 {[%emt 0:00:13]} 10. Ne2 {[%emt 0:02:05]} Nbc6 {[%emt 0:00:42]} 11. f4 {[%emt 0:02:36]} Bd7 {[%emt 0:02:05]} 12. Qd3 {[%emt 0:03:47]} ({Of course not} 12. cxd4 Nxd4 13. Ra2 Nxe2 $17) 12... dxc3 {[%emt 0:01:36]} 13. Nxc3 {[%emt 0:03:07]} a6 {[%emt 0:04:08]} 14. Rb1 {[%emt 0:10:03]} Na5 $14 {[%emt 0:02:10] LiveBook: 74 Games} 15. Rg1 {[%emt 0:24:34]} Rc8 {[%emt 0:04:48]} 16. Bd2 {[%emt 0:00:40]} Nc4 {[%emt 0:01:17]} 17. Ne2 {[%emt 0:02:16]} Bb5 {[%emt 0:35:18]} 1-0

[Event "IIFL Wealth  4th Mumbai Junior U-13"]
[Site "Mumbai"]
[Date "2019.01.03"]
[Round "5"]
[White "Barde Om"]
[Black "Raghu Ram Reddy Seelam"]
[Result "1/2-1/2"]
[ECO "C50"]
[WhiteElo "1801"]
[BlackElo "1472"]
[Annotator "NA RC"]
[PlyCount "88"]
[EventDate "2018.12.30"]
[EventType "swiss"]
[EventCountry "IND"]
[SourceTitle "playchess.com"]
[Source "ChessBase"]
[SourceQuality "1"]
[TimeControl "40/5400+30:1800+30"]

1. e4 {[%emt 0:00:00]} e5 {[%emt 0:00:32]} 2. Nf3 {[%emt 0:00:00]} Nc6 {[%emt 0:00:09]} 3. Bc4 {[%emt 0:00:00]} Bc5 {[%emt 0:00:04]} 4. d3 {[%emt 0:00:00]} Nf6 {[%emt 0:00:37]} 5. c3 {[%emt 0:00:02]} a6 {[%emt 0:01:53]} 6. Bb3 {[%emt 0:01:44] LiveBook: 1181 Games} Ba7 {[%emt 0:00:39]} 7. Bg5 {[%emt 0:01:54] C54: Giuoco Piano: 4 c3 Nf6, main lines with 5 d4 and 5 d3} (7. h3 O-O 8. Qe2 d6 9. Nbd2 Nd7 10. g4 Nc5 11. Bc2 Ne6 12. Nf1 Ne7 13. Ng3 Ng6 14. Nh5 b5 {0-1 (55) Jovanovic,Z (2537)-Adhiban,B (2682) Zagreb 2018}) 7... d6 {[%emt 0:04:24]} 8. h3 {[%emt 0:03:04]} h6 {[%emt 0:02:51]} 9. Bh4 {[%emt 0:00:22]} Qe7 {[%emt 0:01:33]} 10. Nbd2 {[%emt 0:09:26]} Be6 {[%emt 0:03:11]} 11. Qe2 {[%emt 0:04:01]} g5 {[%emt 0:05:21]} 12. Bg3 {[%emt 0:02:01]} Rg8 {[%emt 0:00:40]} 13. O-O-O {[%emt 0:06:03]} O-O-O {[%emt 0:00:21]} 14. Kb1 $146 {[%emt 0:05:44]} ({Predecessor:} 14. Ba4) 14... Bb6 {[%emt 0:23:47]} 15. Bc2 {[%emt 0:01:11]} Qe8 {[%emt 0:06:53]} 16. Nf1 {[%emt 0:14:11]} ({White should try} 16. Bh2 $11) 16... Qe7 {[%emt 0:06:16]} 17. Qe1 {[%emt 0:03:54]} Rde8 {[%emt 0:01:29]} 18. a3 {[%emt 0:04:08]} Nh5 {[%emt 0:00:35]} 19. Qd2 {[%emt 0:07:30]} f5 {[%emt 0:03:12]} 20. Bh2 {[%emt 0:14:00]} fxe4 {[%emt 0:04:46]} 21. dxe4 {[%emt 0:00:06]} Qf6 {[%emt 0:00:32]} 22. Qe2 {[%emt 0:06:46]} Nf4 {[%emt 0:04:21]} 23. Bxf4 {[%emt 0:00:07]} gxf4 {[%emt 0:00:07]} 24. Rh2 {[%emt 0:04:59]} Re7 {[%emt 0:02:40]} 25. N1d2 {[%emt 0:00:52]} Reg7 {[%emt 0:00:36]} 26. Ne1 {[%emt 0:00:44]} Qh4 {[%emt 0:01:23]} 27. f3 {[%emt 0:04:24]} Qf2 $17 {[%emt 0:01:58]} (27... Bg1 $19 28. Rh1 Bf2) 28. g4 {[%emt 0:04:03]} Qxe2 {[%emt 0:02:08]} 29. Rxe2 {[%emt 0:00:04]} h5 {[%emt 0:00:10]} 30. Bb3 {[%emt 0:02:04]} Bxb3 {[%emt 0:00:21]} 31. Nxb3 {[%emt 0:00:02]} hxg4 {[%emt 0:00:09]} 32. hxg4 {[%emt 0:00:04]} Rh8 {[%emt 0:00:45]} 33. Nd3 {[%emt 0:02:12]} Rh3 {[%emt 0:01:10]} 34. Rf1 {[%emt 0:00:03]} Ne7 {[%emt 0:00:20]} 35. Nd2 {[%emt 0:00:58]} Ng6 {[%emt 0:01:11]} 36. Kc2 {[%emt 0:00:42]} Nh4 {[%emt 0:00:31]} 37. Kd1 {[%emt 0:00:12]} Rh7 {[%emt 0:01:58]} 38. Ne1 {[%emt 0:00:50]} Ng6 {[%emt 0:02:15]} 39. Rg2 {[%emt 0:00:28]} Nh4 {[%emt 0:00:09]} 40. Re2 {[%emt 0:00:00]} Ng6 {[%emt 0:00:00]} 41. Rg2 {[%emt 0:00:28]} Nh4 {[%emt 0:00:06]} 42. Re2 {[%emt 0:00:05]} Ng6 {[%emt 0:00:04]} 43. Rg2 {[%emt 0:00:04]} Nh4 {[%emt 0:00:03]} 44. Re2 Kd7 1/2-1/2

[Event "IIFL Wealth  4th Mumbai Junior U-13"]
[Site "Mumbai"]
[Date "2019.01.03"]
[Round "5"]
[White "Devesh Anand Naik"]
[Black "Parab Ram Vishal"]
[Result "1-0"]
[ECO "C65"]
[WhiteElo "1763"]
[BlackElo "1242"]
[Annotator "NA"]
[PlyCount "91"]
[EventDate "2018.12.30"]
[EventType "swiss"]
[EventCountry "IND"]
[SourceTitle "playchess.com"]
[Source "ChessBase"]
[SourceQuality "1"]
[TimeControl "40/5400+30:1800+30"]

1. e4 {[%emt 0:00:00]} e5 {[%emt 0:00:14]} 2. Nf3 {[%emt 0:00:00]} Nc6 {[%emt 0:01:18]} 3. Bb5 {[%emt 0:00:00]} Bc5 {[%emt 0:01:33]} 4. O-O {[%emt 0:00:42]} Nf6 {[%emt 0:01:45]} 5. d3 {[%emt 0:00:13]} d6 {[%emt 0:01:25]} 6. c3 {[%emt 0:00:14]} O-O {[%emt 0:02:54]} 7. h3 {[%emt 0:00:41]} Bd7 {[%emt 0:01:56]} 8. Nbd2 {[%emt 0:01:53]} Qe7 {[%emt 0:02:46]} 9. Re1 {[%emt 0:02:08]} a6 {[%emt 0:03:41]} 10. Ba4 {[%emt 0:01:38]} Rfe8 {[%emt 0:01:25]} 11. Nf1 {[%emt 0:00:56]} h6 {[%emt 0:02:07]} 12. Ng3 {[%emt 0:01:54]} Rad8 {[%emt 0:03:02]} 13. d4 {[%emt 0:05:45]} Bb6 {[%emt 0:01:56]} 14. Bc2 {[%emt 0:12:37]} exd4 {[%emt 0:05:52]} 15. cxd4 {[%emt 0:00:54]} Ba5 {[%emt 0:03:53]} 16. Bd2 {[%emt 0:01:27]} Bxd2 {[%emt 0:01:44]} 17. Qxd2 {[%emt 0:00:11]} Qf8 {[%emt 0:02:36]} 18. a3 {[%emt 0:04:20]} a5 {[%emt 0:05:14]} 19. d5 {[%emt 0:07:15]} Ne5 {[%emt 0:02:51]} 20. Nxe5 {[%emt 0:00:23]} Rxe5 21. f4 {[%emt 0:06:21]} Ree8 {[%emt 0:02:41]} 22. Qxa5 {[%emt 0:02:00]} b6 {[%emt 0:02:48]} 23. Qc3 {[%emt 0:02:43]} Rc8 {[%emt 0:01:53]} 24. Qd3 {[%emt 0:01:14]} g6 {[%emt 0:02:52]} 25. Kh2 Qg7 26. Bb3 {[%emt 0:08:26]} Nh7 {[%emt 0:04:28]} 27. Re3 {[%emt 0:01:21]} Qxb2 {[%emt 0:01:11]} 28. Rae1 {[%emt 0:06:02]} Qxa3 {[%emt 0:02:43]} 29. e5 {[%emt 0:01:35]} dxe5 {[%emt 0:02:49]} 30. fxe5 {[%emt 0:00:44]} Kg7 {[%emt 0:07:23]} 31. e6 {[%emt 0:02:03]} Ba4 {[%emt 0:02:15]} 32. Qd4+ {[%emt 0:00:32]} f6 {[%emt 0:01:04]} 33. Bxa4 {[%emt 0:00:16]} Qe7 {[%emt 0:01:40]} 34. Bxe8 {[%emt 0:00:17]} Rxe8 {[%emt 0:01:00]} 35. Qg4 {[%emt 0:01:53]} Ng5 {[%emt 0:02:08]} 36. Qf4 {[%emt 0:01:29]} b5 {[%emt 0:02:49]} 37. Rc3 {[%emt 0:00:52]} Rc8 {[%emt 0:01:35]} 38. d6 {[%emt 0:01:08]} Qf8 {[%emt 0:01:00]} 39. d7 {[%emt 0:00:23]} Rd8 {[%emt 0:00:43]} 40. e7 {[%emt 0:00:00]} Qg8 {[%emt 0:00:00]} 41. exd8=Q {[%emt 0:01:25]} Qxd8 {[%emt 0:01:51]} 42. Qxc7 {[%emt 0:00:21]} Qxc7 {[%emt 0:00:33]} 43. Rxc7 {[%emt 0:00:07]} b4 {[%emt 0:00:43]} 44. d8=Q+ {[%emt 0:00:25]} Nf7 {[%emt 0:00:21]} 45. Rxf7+ {[%emt 0:00:06]} Kxf7 {[%emt 0:00:27]} 46. Re7# {[%emt 0:00:06]} 1-0

[Event "IIFL Wealth  4th Mumbai Junior U-13"]
[Site "Mumbai"]
[Date "2019.01.03"]
[Round "5"]
[White "Sadbhav Rautela"]
[Black "Varshita Jain"]
[Result "1-0"]
[ECO "C42"]
[WhiteElo "1746"]
[BlackElo "1461"]
[Annotator "NA"]
[PlyCount "45"]
[EventDate "2018.12.30"]
[EventType "swiss"]
[EventCountry "IND"]
[SourceTitle "playchess.com"]
[Source "ChessBase"]
[SourceQuality "1"]
[TimeControl "40/5400+30:1800+30"]

1. e4 e5 2. Nf3 Nf6 3. Nxe5 d6 4. Nf3 Nxe4 5. Nc3 Nxc3 6. dxc3 Be7 7. Be3 O-O 8. Qd2 d5 9. O-O-O c6 10. Bd3 Be6 11. Kb1 c5 12. h4 c4 13. Be2 a5 14. g4 Nc6 15. g5 f6 16. h5 b5 17. g6 b4 18. h6 hxg6 19. hxg7 Re8 20. Bd4 Nxd4 21. Nxd4 Qb6 22. Qh6 bxc3 23. Qh7+ 1-0